bitfinex/quotes_ETHUSD_20250823
["timestamp","ask_amount","ask_price","bid_price","bid_amount"]
[1755952173769,0.001,4725.3,4725.0,0.66]
[1755952173980,0.001,4725.3,4725.2,0.9707]
[1755952174481,0.001,4725.3,4725.2,1.4325]
[1755952175394,0.001,4725.3,4725.2,0.9707]
[1755952177942,0.001,4725.3,4725.2,1.4325]
[1755952178199,0.001,4725.3,4725.2,1.6437]
[1755952178788,0.001,4725.3,4725.2,1.5381]
[1755952180885,0.001,4725.3,4725.2,1.6447]
[1755952182121,0.001,4725.3,4725.2,8.2127]
[1755952187005,0.001,4725.3,4725.2,7.7509]
[1755952187223,0.001,4725.3,4725.2,8.2127]
[1755952192711,0.2952,4725.3,4725.2,3.2122]
[1755952192896,0.7631,4725.3,4725.2,6.566]
[1755952193839,0.7631,4725.3,4725.2,7.226]
[1755952200439,0.7631,4725.3,4725.2,3.66]
[1755952201039,0.7631,4725.3,4725.2,7.225]
[1755952201523,0.2952,4725.3,4725.2,7.225]
[1755952201746,0.7631,4725.3,4725.0,1.627]
[1755952201928,0.2952,4725.3,4725.1,3.565]
[1755952202131,0.4679,4725.2,4725.1,3.565]
[1755952202465,0.4679,4725.2,4724.8,0.024]
[1755952202466,0.7621,4725.2,4724.8,0.024]
[1755952202611,0.7621,4725.2,4724.9,3.565]
[1755952202811,0.4679,4725.1,4724.9,3.565]
[1755952203028,0.3998,4725.0,4724.9,3.565]
[1755952203538,0.8677,4725.0,4724.9,3.565]
[1755952206441,0.8677,4725.0,4724.8,0.024]
[1755952206651,0.4679,4724.9,4724.8,0.024]
[1755952206818,0.7621,4724.9,4724.8,0.024]
[1755952214815,0.2942,4724.9,4724.8,0.024]
[1755952215017,0.7621,4724.9,4724.8,0.024]
[1755952215260,3.7621,4724.9,4724.3,0.004]
[1755952215454,1.39263,4724.8,4724.3,0.004]
[1755952215656,0.2942,4724.4,4724.3,0.004]
[1755952216154,0.7621,4724.4,4724.3,0.004]
[1755952216336,0.846932,4724.4,4724.3,0.004]
[1755952216944,1.17817698,4724.4,4724.3,0.004]
[1755952217139,1.60012172,4724.4,4724.3,0.004]
[1755952217346,1.26887674,4724.4,4724.3,0.004]
[1755952218234,4.26887674,4724.4,4724.3,0.004]
[1755952218635,1.26887674,4724.4,4724.3,0.004]
[1755952219172,3.71679303,4724.4,4724.3,0.004]
[1755952219527,6.71679303,4724.4,4724.3,0.004]
[1755952221861,33.0,4724.3,4722.8,0.01919503]
[1755952222045,0.3051,4722.9,4719.9,8.98410199]
[1755952222249,3.0,4722.7,4720.9,0.58518155]
[1755952222448,1.628,4722.8,4720.4,0.4745]
[1755952222449,0.3051,4721.9,4720.4,0.4745]
[1755952222622,1.9331,4721.9,4720.4,0.4745]
[1755952222975,2.3962,4721.9,4720.4,0.4745]
[1755952223478,2.8707,4721.9,4719.8,3.02]
[1755952223771,2.8707,4721.9,4720.7,0.4745]
[1755952223973,2.4076,4721.9,4720.7,0.4745]
[1755952224173,1.628,4721.9,4721.8,0.3185]
[1755952225172,1.7336,4721.9,4721.8,0.3185]
[1755952225472,1.7336,4721.9,4721.8,0.02]
[1755952225473,2.0387,4721.9,4721.8,0.02]
[1755952225689,0.1056,4721.9,4721.8,0.9785]
[1755952225975,0.1056,4721.9,4721.8,1.453]
[1755952226172,0.636397,4722.7,4721.9,0.66]
[1755952226354,3.0,4723.3,4721.9,0.66]
[1755952226355,0.1056,4722.2,4721.9,0.66]
[1755952226559,0.1056,4722.2,4722.1,0.9585]
[1755952226875,0.636348,4723.0,4722.2,0.66]
[1755952227180,0.1056,4722.3,4722.2,0.66]
[1755952227356,0.1056,4722.3,4722.2,0.9585]
[1755952228535,0.1056,4722.3,4722.2,1.433]
[1755952231056,0.1056,4722.3,4722.2,0.9585]
[1755952231563,0.1056,4722.3,4721.8,0.02]
[1755952231731,0.1056,4721.9,4721.8,0.02]
[1755952231938,0.1056,4721.9,4721.8,0.9785]
[1755952232546,0.1056,4721.9,4721.8,1.453]
[1755952235875,0.1056,4721.9,4721.8,0.9785]
[1755952237040,0.1056,4721.9,4721.8,0.68]
[1755952237573,0.1056,4721.9,4721.8,0.9785]
[1755952238357,0.1056,4721.9,4721.8,1.453]
[1755952238742,0.1056,4721.9,4721.8,1.457]
[1755952239149,0.4631,4723.4,4721.9,0.66]
[1755952239150,0.1056,4722.4,4721.9,0.66]
[1755952239345,0.636393,4723.2,4722.3,0.9585]
[1755952239557,0.636393,4723.2,4722.4,0.66]
[1755952239802,1.628,4724.1,4723.2,0.66]
[1755952239981,2.11718366,4725.5,4723.7,0.9585]
[1755952239982,0.636187,4724.7,4723.7,0.9585]
[1755952240289,1.628,4724.9,4723.7,0.9585]
[1755952240485,0.1056,4724.1,4723.7,0.9585]
[1755952240644,0.1056,4724.1,4723.7,1.433]
[1755952241080,0.1056,4724.1,4723.7,0.9585]
[1755952241242,0.3251,4723.8,4723.7,0.66]
[1755952241450,0.02,4723.8,4723.7,0.66]
[1755952241650,0.1256,4723.8,4723.7,0.66]
[1755952241868,0.1256,4723.8,4723.7,0.9585]
[1755952242490,0.1256,4723.8,4723.7,1.433]
[1755952242855,0.1256,4723.8,4723.7,0.9585]
[1755952243088,0.4307,4723.8,4723.7,0.66]
[1755952244282,0.1256,4723.8,4723.7,0.66]
[1755952244984,0.1256,4723.8,4723.7,0.9585]
[1755952245555,0.1256,4723.8,4723.7,0.66]
[1755952245753,0.1256,4723.8,4723.7,0.9585]
[1755952246187,0.1256,4723.8,4723.7,0.66]
[1755952247409,0.4307,4723.8,4723.7,0.66]
[1755952247566,0.8938,4723.8,4723.7,0.66]
[1755952250394,0.4307,4723.8,4723.7,0.66]
[1755952251973,0.1256,4723.8,4723.7,0.66]
[1755952252173,0.1256,4723.8,4723.7,0.9689]
[1755952253870,0.4107,4723.8,4723.7,0.66]
[1755952255301,0.1256,4723.8,4723.7,1.4024]
[1755952255500,0.02,4723.8,4723.7,1.4024]
[1755952256276,0.021,4723.8,4723.7,1.4024]
[1755952261512,0.7385,4723.8,4723.4,0.1056]
[1755952261873,0.1056,4723.5,4722.6,0.1056]
[1755952261988,0.2851,4722.9,4722.5,1.628]
[1755952262180,0.2851,4722.9,4722.5,4.628]
[1755952262776,0.1056,4723.0,4722.8,0.3129]
[1755952263276,0.1056,4723.0,4722.9,0.66]
[1755952263610,0.1056,4723.0,4722.9,0.9689]
[1755952264712,0.3907,4723.0,4722.8,0.004]
[1755952264912,0.4324,4722.9,4722.8,0.004]
[1755952265117,0.7175,4722.9,4722.8,0.004]
[1755952270909,0.2851,4722.9,4722.8,0.004]
[1755952271081,0.7175,4722.9,4722.8,0.004]
[1755952276331,0.1056,4723.0,4722.8,0.004]
[1755952276497,0.1056,4723.0,4722.9,0.66]
[1755952276943,0.3907,4723.0,4722.8,0.004]
[1755952278719,0.4366,4722.9,4722.8,0.004]
[1755952278966,0.74,4722.9,4722.8,0.004]
[1755952283238,0.3034,4722.9,4722.8,0.004]
[1755952283655,0.74,4722.9,4722.8,0.004]
[1755952284234,2.368,4722.9,4722.8,0.004]
[1755952284423,8.03270315,4722.9,4722.8,0.004]
[1755952284628,7.81668792,4722.9,4722.8,0.004]
[1755952285624,8.45314192,4722.9,4722.8,0.004]
[1755952286965,6.33579877,4722.9,4722.8,0.004]
[1755952287738,8.45314192,4722.9,4722.8,0.004]
[1755952288133,9.52073786,4722.9,4722.8,0.004]
[1755952289750,9.97623594,4722.9,4722.8,0.004]
[1755952290142,9.84260982,4722.9,4722.8,0.004]
[1755952290542,10.41282049,4722.9,4722.8,0.004]
[1755952290955,10.41382049,4722.9,4722.8,0.004]
[1755952291170,10.41372677,4722.9,4722.8,0.004]
[1755952291337,13.98272677,4722.9,4722.8,0.004]
[1755952291756,10.41372677,4722.9,4722.8,0.004]
[1755952291967,13.5181161,4722.9,4722.8,0.004]
[1755952293880,9.9491161,4722.9,4722.8,0.004]
[1755952294074,13.5181161,4722.9,4722.8,0.004]
[1755952294281,7.83177295,4722.9,4722.8,0.004]
[1755952294610,7.76654802,4722.9,4722.8,0.004]
[1755952294911,3.43864994,4722.9,4722.8,0.2929]
[1755952295056,8.3036,4722.9,4722.8,0.2929]
[1755952296068,0.001,4722.9,4722.8,1.4186]
[1755952296257,0.1066,4722.9,4722.8,1.4186]
[1755952298062,0.001,4722.9,4722.8,4.4186]
[1755952298373,0.001,4722.9,4722.8,1.5242]
[1755952305300,0.001,4722.9,4722.8,1.4186]
[1755952305500,0.001,4722.9,4722.8,1.5242]
[1755952307919,0.001,4723.4,4722.9,0.66]
[1755952308123,0.001,4723.4,4723.3,0.9489]
[1755952308323,0.001,4723.4,4723.3,5.6825]
[1755952308501,0.001,4723.4,4723.3,6.1373]
[1755952309233,0.001,4723.4,4723.3,6.23640348]
[1755952310699,0.001,4723.4,4723.3,6.1373]
[1755952311014,0.001,4723.4,4723.3,9.7043]
[1755952312018,0.001,4723.4,4723.3,5.6825]
[1755952312338,0.001,4723.4,4723.3,9.2495]
[1755952313517,0.001,4723.4,4723.3,9.7043]
[1755952313726,0.001,4723.4,4723.3,9.2495]
[1755952314132,0.001,4723.4,4723.3,9.7043]
[1755952315939,0.001,4723.4,4723.3,9.90121394]
[1755952316339,0.001,4723.4,4723.3,9.90121867]
[1755952316745,0.001,4723.4,4723.3,9.90121879]
[1755952319161,0.001,4723.4,4723.3,9.90124639]
[1755952323762,0.2925,4723.4,4723.3,9.15754639]
[1755952324259,0.001,4723.4,4723.3,9.15832419]
[1755952324766,0.001,4723.4,4723.3,9.45603546]
[1755952325134,0.001,4723.4,4723.3,9.91083546]
[1755952325572,0.001,4723.4,4723.3,14.17083546]
[1755952325936,0.001,4723.4,4723.3,13.71603546]
[1755952326260,0.021,4723.8,4723.4,3.98261015]
[1755952326433,0.021,4723.8,4723.7,1.0633]
[1755952326638,0.021,4723.8,4723.7,7.53065473]
[1755952326846,0.021,4723.8,4723.7,7.82835473]
[1755952328339,0.021,4723.8,4723.7,3.96365473]
[1755952328535,0.021,4723.8,4723.7,3.66]
[1755952328536,0.3125,4723.8,4723.7,3.66]
[1755952328739,0.7538,4723.8,4723.7,7.226]
[1755952329045,0.3125,4723.8,4723.7,7.226]
[1755952329233,0.021,4723.8,4723.7,7.226]
[1755952329438,0.3125,4723.8,4723.7,7.226]
[1755952329838,0.021,4723.8,4723.7,7.5237]
[1755952330378,0.3125,4723.8,4723.7,7.226]
[1755952330537,0.021,4723.8,4723.7,7.226]
[1755952331667,0.3125,4723.8,4723.7,7.226]
[1755952331981,0.021,4723.8,4723.7,7.5237]
[1755952332340,0.021,4723.8,4723.7,7.226]
[1755952332653,0.021,4723.8,4723.7,7.5237]
[1755952334245,0.021,4723.8,4723.7,7.9785]
[1755952334942,0.001,4724.3,4723.8,3.66]
[1755952335146,0.001,4724.3,4724.2,0.9577]
[1755952335341,0.001,4724.3,4724.2,9.1507]
[1755952335661,0.001,4724.3,4724.2,9.80386597]
[1755952336455,0.001,4724.3,4724.2,5.78306597]
[1755952336752,0.7338,4724.3,4724.2,9.05136597]
[1755952337168,0.2925,4724.3,4724.2,9.05136597]
[1755952337371,0.7338,4724.3,4724.2,8.39136597]
[1755952337574,0.7338,4724.3,4724.2,5.193]
[1755952338460,0.7338,4724.3,4724.2,5.853]
[1755952338659,0.2925,4724.3,4724.2,5.853]
[1755952338860,0.001,4724.3,4724.2,9.1602]
[1755952339475,0.001,4724.3,4724.2,8.853]
[1755952341183,0.001,4724.3,4724.2,9.1602]
[1755952343386,0.001,4724.3,4724.2,9.6221]
[1755952344087,0.001,4724.4,4724.3,3.66]
[1755952344289,0.001,4724.4,4724.3,4.4291]
[1755952345117,0.001,4724.5,4724.3,4.4291]
[1755952345320,0.001,4724.5,4724.4,7.6879]
[1755952345524,0.001,4724.5,4724.4,8.19318577]
[1755952345820,0.001,4724.8,4724.5,3.66]
[1755952346136,0.001,4724.8,4724.7,4.0728]
[1755952346735,0.001,4724.8,4724.7,4.5347]
[1755952350248,0.001,4725.3,4724.7,4.5347]
[1755952350409,0.001,4725.3,4725.0,3.66]
[1755952350611,0.001,4725.3,4725.2,4.0728]
[1755952351122,0.001,4725.3,4725.2,4.5347]
[1755952351321,0.001,4726.3,4725.2,4.5347]
[1755952351630,0.001,4726.3,4725.4,3.66]
[1755952351825,0.001,4726.3,4725.4,3.9672]
[1755952352045,0.001,4726.3,4725.4,4.4291]
[1755952352544,0.001,4726.3,4725.7,12.65177952]
[1755952352704,0.001,4726.3,4725.7,16.52397952]
[1755952352904,0.001,4726.3,4725.7,17.09147952]
[1755952355920,0.001,4726.3,4725.7,18.05957952]
[1755952356120,0.001,4727.2,4726.7,0.66]
[1755952356357,0.001,4727.2,4727.1,1.0728]
[1755952356558,0.001,4727.2,4727.1,7.6378]
[1755952356717,0.001,4727.2,4727.1,8.0997]
[1755952357241,0.001,4727.2,4727.1,9.4241]
[1755952357447,0.001,4727.2,4727.1,9.5297]
[1755952357752,0.001,4727.2,4727.1,9.0678]
[1755952358115,0.001,4727.2,4727.1,9.5297]
[1755952359244,0.001,4727.7,4727.2,3.66]
[1755952359439,0.001,4727.7,4727.6,1.0728]
[1755952359741,0.001,4727.7,4727.6,7.6368]
[1755952359963,0.001,4727.7,4727.6,8.19835354]
[1755952360261,0.001,4727.7,4727.6,8.0987]
[1755952360640,0.001,4727.7,4727.6,7.6368]
[1755952360856,0.001,4727.7,4727.6,3.7656]
[1755952361027,0.001,4727.7,4727.6,7.721512]
[1755952362577,0.001,4728.0,4727.7,0.66]
[1755952362789,0.001,4728.0,4727.9,3.9672]
[1755952362955,0.001,4728.0,4727.9,4.0728]
[1755952363160,0.293,4728.0,4727.9,3.7656]
[1755952363556,0.293,4728.0,4727.9,3.85031]
[1755952364748,0.001,4728.0,4727.9,3.85031]
[1755952365385,0.001,4728.0,4727.9,4.15751]
[1755952365958,0.293,4728.0,4727.9,3.85031]
[1755952366376,0.293,4728.0,4727.9,0.85031]
[1755952366576,0.7647,4728.0,4727.9,7.41331]
[1755952366788,0.7647,4728.0,4727.9,7.3286]
[1755952367689,0.001,4728.0,4727.9,7.6358]
[1755952367893,0.293,4728.0,4727.9,7.963926]
[1755952368194,0.7647,4728.0,4727.9,7.3286]
[1755952368361,0.293,4728.0,4727.9,7.3286]
[1755952368762,0.293,4728.0,4727.9,11.5886]
[1755952369091,0.7411,4728.0,4727.9,11.5886]
[1755952370755,0.7411,4728.0,4727.9,7.3286]
[1755952371688,0.7411,4728.0,4727.9,3.7656]
[1755952371857,0.7411,4728.0,4727.9,7.3286]
[1755952375993,0.7411,4728.0,4727.9,7.52509525]
[1755952377269,0.7411,4728.0,4727.9,7.52525954]
[1755952377671,0.7411,4728.0,4727.9,3.96225954]
[1755952377870,0.7411,4728.0,4727.9,3.30225954]
[1755952378097,0.7411,4728.0,4727.9,6.86425954]
[1755952378498,0.7411,4728.0,4727.9,7.52425954]
[1755952379809,0.7411,4728.0,4727.9,7.41865954]
[1755952379993,0.7411,4728.0,4727.9,0.19665954]
[1755952380303,0.7411,4728.0,4727.8,0.004]
[1755952380507,0.293,4728.0,4727.9,3.76024868]
[1755952380670,0.3986,4728.0,4727.9,3.76024868]
[1755952380870,0.3986,4728.0,4727.9,0.19724868]
[1755952381071,0.8467,4728.0,4727.9,0.19726345]
[1755952381286,0.8467,4728.0,4727.9,0.19739808]
[1755952381773,1.14305903,4728.0,4727.8,0.004]
[1755952382005,0.4481,4727.9,4727.8,0.004]
[1755952382207,0.7633,4727.9,4727.8,0.004]
[1755952384284,1.09429323,4727.9,4727.8,0.004]
[1755952384895,6.20939718,4727.9,4727.8,0.004]
[1755952385084,12.65519643,4727.9,4727.8,0.004]
[1755952385284,17.6627004,4727.9,4727.8,0.004]
[1755952385984,6.55728312,4727.9,4727.8,0.004]
[1755952386594,4.21878592,4727.9,4727.8,0.004]
[1755952386777,4.32438592,4727.9,4727.8,0.004]
[1755952387232,3.8689,4727.9,4727.8,0.004]
[1755952387737,3.8689,4727.9,4727.8,0.024]
[1755952390503,3.953664,4727.9,4727.8,0.024]
[1755952391002,3.953664,4727.9,4727.3,0.004]
[1755952391003,3.00238232,4727.8,4727.3,0.004]
[1755952391233,0.4208,4727.4,4727.3,0.004]
[1755952391660,0.8689,4727.4,4727.3,0.004]
[1755952393321,0.8689,4727.4,4727.3,0.00161769]
[1755952398828,5.98422766,4727.4,4727.3,0.00161769]
[1755952399048,8.09326798,4727.4,4727.3,0.00161769]
[1755952402127,8.42432945,4727.4,4727.3,0.00161769]
[1755952405366,8.87935445,4727.4,4727.3,0.00161769]
[1755952406270,0.33106147,4727.4,4727.3,0.97441769]
[1755952406435,3.564,4727.9,4727.3,1.42061769]
[1755952406639,3.0,4727.8,4727.3,1.42061769]
[1755952408268,0.2911,4727.4,4727.3,0.00161769]
[1755952408467,0.66595,4727.4,4727.3,0.00161769]
[1755952408641,4.24695,4727.4,4727.3,0.00161769]
[1755952408961,4.70435,4727.4,4727.3,0.00161769]
[1755952409867,4.24695,4727.4,4727.3,0.00161769]
[1755952410164,3.95585,4727.4,4727.3,0.31441769]
[1755952411170,3.95585,4727.4,4727.3,0.00161769]
[1755952416278,4.06145,4727.4,4727.3,0.00161769]
[1755952417898,0.48045,4727.4,4727.3,0.31441769]
[1755952418082,3.6806,4727.4,4727.3,1.42061769]
[1755952418402,0.1056,4727.4,4727.3,1.42061769]
[1755952418558,0.1056,4727.4,4727.3,0.31441769]
[1755952418757,0.1056,4727.4,4727.3,0.00161769]
[1755952418758,4.3235,4727.4,4727.3,0.00161769]
[1755952418958,5.37538775,4727.4,4727.3,0.00161769]
[1755952419162,8.37538775,4727.4,4727.3,0.00161769]
[1755952419486,10.77381825,4727.4,4727.3,0.00161769]
[1755952419684,11.53541017,4727.4,4727.3,0.00161769]
[1755952420006,10.77381825,4727.4,4727.3,0.00161769]
[1755952420468,10.77381825,4727.4,4726.8,0.02]
[1755952420469,3.0,4727.3,4726.8,0.02]
[1755952420661,9.85242292,4726.9,4726.8,0.02]
[1755952420861,19.20102492,4726.9,4726.8,0.02]
[1755952421097,19.65842492,4726.9,4726.8,0.02]
[1755952421295,19.08741533,4726.9,4726.8,0.02]
[1755952422096,19.98954017,4726.9,4726.8,0.02]
[1755952422265,22.13141817,4726.9,4726.8,0.02]
[1755952422996,21.56040858,4726.9,4726.8,0.02]
[1755952425088,21.64521258,4726.9,4726.8,0.02]
[1755952425288,22.21551196,4726.9,4726.8,0.02]
[1755952425691,22.21551196,4726.9,4726.8,0.024]
[1755952426263,22.01719912,4726.9,4726.8,0.024]
[1755952426460,22.21522389,4726.9,4726.8,0.024]
[1755952426899,24.44519483,4726.9,4726.8,0.024]
[1755952427099,22.21519483,4726.9,4726.8,0.024]
[1755952427314,5.69765271,4726.9,4726.8,0.3368]
[1755952427609,8.202,4726.9,4726.8,0.3368]
[1755952427909,8.202,4726.9,4726.8,0.783]
[1755952428267,8.217,4726.9,4726.8,0.783]
[1755952428473,8.218,4726.9,4726.8,0.783]
[1755952428671,8.3236,4726.9,4726.8,0.783]
[1755952428874,0.1056,4726.9,4726.8,0.783]
[1755952429888,0.1056,4726.9,4726.8,0.3368]
[1755952430090,0.47516,4726.9,4726.8,0.3368]
[1755952430289,0.1056,4726.9,4726.8,0.3368]
[1755952430489,0.1056,4726.9,4726.8,0.7938]
[1755952430690,0.1056,4726.9,4726.8,0.3368]
[1755952433014,0.1056,4726.9,4726.8,0.7938]
[1755952433418,0.1056,4726.9,4726.8,0.3368]
[1755952434485,0.52086,4726.9,4726.8,0.024]
[1755952434686,0.52086,4726.9,4726.8,0.3167]
[1755952436016,0.52086,4726.9,4726.8,0.024]
[1755952436316,0.83406,4726.9,4726.8,0.024]
[1755952436519,6.39071141,4726.9,4726.8,0.024]
[1755952436706,6.84678526,4726.9,4726.8,0.024]
[1755952436900,9.40787756,4726.9,4726.8,0.024]
[1755952437096,7.17787756,4726.9,4726.8,0.024]
[1755952437317,6.84678526,4726.9,4726.8,0.024]
[1755952437733,16.03504182,4726.9,4726.8,0.024]
[1755952438436,7.04472849,4726.9,4726.8,0.024]
[1755952438639,7.04470909,4726.9,4726.8,0.024]
[1755952438819,7.04470918,4726.9,4726.8,0.024]
[1755952439425,12.13070918,4726.9,4726.8,0.024]
[1755952439844,12.78581356,4726.9,4726.8,0.024]
[1755952440245,12.21551418,4726.9,4726.8,0.024]
[1755952440618,12.82806277,4726.9,4726.8,0.024]
[1755952440817,12.93366277,4726.9,4726.8,0.3167]
[1755952441014,13.26478372,4726.9,4726.8,0.3167]
[1755952441319,9.4788598,4726.9,4726.8,0.3167]
[1755952441723,13.0668598,4726.9,4726.8,0.024]
[1755952441910,15.18241121,4726.9,4726.8,0.024]
[1755952442111,11.59441121,4726.9,4726.8,0.024]
[1755952442316,13.0668598,4726.9,4726.8,0.024]
[1755952442758,15.93671121,4726.9,4726.8,0.024]
[1755952444251,15.93676124,4726.9,4726.8,0.024]
[1755952444556,16.1347382,4726.9,4726.8,0.024]
[1755952445886,2.11577522,4726.4,4726.3,0.004]
[1755952446061,11.78610068,4726.4,4726.3,0.004]
[1755952446263,12.78892456,4726.4,4726.3,0.004]
[1755952446624,13.12008062,4726.4,4726.3,0.004]
[1755952446935,13.35914996,4726.4,4726.3,0.004]
[1755952447360,13.6903105,4726.4,4726.3,0.004]
[1755952447577,13.35914996,4726.4,4726.3,0.004]
[1755952447982,9.41686696,4726.4,4726.3,0.004]
[1755952448151,12.43264156,4726.4,4726.3,0.004]
[1755952448665,12.87374156,4726.4,4726.3,0.004]
[1755952449055,13.59918718,4726.4,4726.3,0.004]
[1755952450385,13.93033183,4726.4,4726.3,0.004]
[1755952453371,13.93020209,4726.4,4726.3,0.004]
[1755952455366,13.35997669,4726.4,4726.3,0.004]
[1755952457689,13.93020209,4726.4,4726.3,0.004]
[1755952458421,13.93020209,4726.4,4725.8,0.024]
[1755952458422,5.11581998,4726.3,4725.8,0.024]
[1755952458701,15.10128329,4725.9,4725.8,0.024]
[1755952458863,19.33525439,4725.9,4725.8,0.024]
[1755952459289,19.19702114,4725.9,4725.8,0.024]
[1755952459491,20.0976469,4725.9,4725.8,0.024]
[1755952459701,22.2395249,4725.9,4725.8,0.024]
[1755952459905,21.90833121,4725.9,4725.8,0.024]
[1755952460223,21.76759914,4725.9,4725.8,0.024]
[1755952460514,2.11622296,4725.4,4725.3,0.004]
[1755952460669,21.41728318,4725.4,4725.3,0.004]
[1755952460875,22.6075458,4725.4,4725.3,0.004]
[1755952461598,22.17972528,4725.4,4725.3,0.004]
[1755952461781,22.9387879,4725.4,4725.3,0.004]
[1755952462501,22.17972528,4725.4,4725.3,0.004]
[1755952462698,22.26456128,4725.4,4725.3,0.004]
[1755952462872,22.26426665,4725.4,4725.3,0.004]
[1755952463296,22.26420286,4725.4,4725.3,0.004]
[1755952465191,23.02326548,4725.4,4725.3,0.004]
[1755952466704,25.25326548,4725.4,4725.3,0.004]
[1755952467079,24.49420286,4725.4,4725.3,0.004]
[1755952467272,25.25326548,4725.4,4725.3,0.004]
[1755952467902,24.49420286,4725.4,4725.3,0.004]
[1755952469001,25.25325942,4725.4,4725.3,0.004]
[1755952470312,24.4941968,4725.4,4725.3,0.004]
[1755952470476,20.4829968,4725.4,4725.3,0.004]
[1755952470682,8.83714582,4725.4,4725.3,0.314]
[1755952470878,12.51774582,4725.4,4725.3,0.314]
[1755952471704,12.18650372,4725.4,4725.3,0.004]
[1755952472075,12.49260372,4725.4,4725.3,0.004]
[1755952472275,12.49265445,4725.4,4725.3,0.004]
[1755952472680,12.49265686,4725.4,4725.3,0.004]
[1755952473227,12.18655686,4725.4,4725.3,0.004]
[1755952474421,12.51779295,4725.4,4725.3,0.004]
[1755952474796,9.51779295,4725.4,4725.3,0.314]
[1755952475007,13.39306739,4725.4,4725.3,0.004]
[1755952475502,13.25509295,4725.4,4725.3,0.004]
[1755952477125,18.34309295,4725.4,4725.3,0.004]
[1755952477329,18.01185686,4725.4,4725.3,0.004]
[1755952480033,18.77091948,4725.4,4725.3,0.004]
[1755952480536,18.77091948,4725.4,4724.8,0.024]
[1755952480537,5.1164469,4724.9,4724.8,0.024]
[1755952480736,19.41050959,4724.9,4724.8,0.024]
[1755952480946,19.94730959,4724.9,4724.8,0.024]
[1755952481627,19.94758127,4724.9,4724.8,0.024]
[1755952481798,20.03242827,4724.9,4724.8,0.024]
[1755952482004,22.17430627,4724.9,4724.8,0.024]
[1755952482457,17.86600627,4724.9,4724.8,0.334]
[1755952482745,11.77765366,4724.9,4724.8,0.334]
[1755952482946,11.77765366,4724.9,4724.8,0.024]
[1755952482947,12.08375366,4724.9,4724.8,0.024]
[1755952483246,22.27862888,4724.9,4724.8,0.024]
[1755952483542,21.84742888,4724.9,4724.8,0.024]
[1755952483747,22.17870833,4724.9,4724.8,0.024]
[1755952485347,21.87260833,4724.9,4724.8,0.024]
[1755952485748,12.76413474,4724.9,4724.8,0.7627]
[1755952485955,12.0046105,4724.9,4724.8,0.7627]
[1755952486833,14.2346105,4724.9,4724.8,0.7627]
[1755952487071,12.0046105,4724.9,4724.8,0.7627]
[1755952487454,12.76413474,4724.9,4724.8,0.7627]
[1755952487857,12.76413474,4724.9,4724.8,0.334]
[1755952488057,13.07023474,4724.9,4724.8,0.024]
[1755952488244,12.86083776,4724.9,4724.8,0.024]
[1755952488441,12.42963776,4724.9,4724.8,0.024]
[1755952489581,13.26282412,4724.9,4724.8,0.3367]
[1755952489756,12.12353776,4724.9,4724.8,0.7667]
[1755952490308,12.12353776,4724.9,4724.8,0.3367]
[1755952490894,11.80680294,4724.9,4724.8,0.3367]
[1755952491196,12.12414273,4724.9,4724.8,0.3367]
[1755952491354,12.12414273,4724.9,4724.8,0.024]
[1755952491552,12.41324244,4724.9,4724.8,0.024]
[1755952491860,13.5525288,4724.9,4724.8,0.024]
[1755952492496,13.2634288,4724.9,4724.8,0.024]
[1755952492986,9.6924288,4724.9,4724.8,0.3367]
[1755952493271,12.12414244,4724.9,4724.8,0.3367]
[1755952496601,12.12414244,4724.9,4724.8,0.7667]
[1755952496895,12.12414244,4724.9,4724.8,0.3367]
[1755952497220,12.84244244,4724.9,4724.8,0.024]
[1755952497533,13.9817288,4724.9,4724.8,0.024]
[1755952497996,13.5525288,4724.9,4724.8,0.024]
[1755952498197,13.9817288,4724.9,4724.8,0.024]
[1755952500168,13.6643893,4724.9,4724.8,0.024]
[1755952500374,13.98168738,4724.9,4724.8,0.024]
[1755952500569,12.84240102,4724.9,4724.8,0.024]
[1755952501108,12.8424015,4724.9,4724.8,0.024]
[1755952502385,9.69535048,4724.9,4724.8,0.024]
[1755952502584,12.1241015,4724.9,4724.8,0.3367]
[1755952502817,1.93733034,4724.9,4724.8,0.7667]
[1755952503081,3.95975878,4724.9,4724.8,0.7667]
[1755952503320,4.21719859,4724.9,4724.8,0.7667]
[1755952503484,7.21719859,4724.9,4724.8,0.7667]
[1755952503993,4.21719859,4724.9,4724.8,0.7667]
[1755952506323,3.760447,4724.9,4724.8,0.7667]
[1755952507396,3.760447,4724.9,4724.8,1.4267]
[1755952507397,0.1056,4724.9,4724.8,1.4267]
[1755952507787,0.001,4725.3,4724.9,0.66]
[1755952507991,0.1066,4725.3,4725.2,0.9727]
[1755952508432,0.1066,4725.3,4725.2,0.7427]
[1755952508790,3.6766,4725.3,4725.2,0.7427]
[1755952510637,3.6766,4725.3,4725.2,0.3127]
[1755952510850,4.33336,4725.3,4724.8,0.024]
[1755952511121,0.1056,4724.9,4724.8,0.024]
[1755952511328,5.3036,4724.9,4724.8,0.3367]